{"text_format":"3","workbook":"xlsx","n_sheets":1,"sheets":["Hoja1"],"read":"whole","date_system":"1900"}

{"sheet":"Hoja1","index":0,"n_rows":42,"n_cols":6,"rows_kept":42,"merged":[[1,0,1,5],[3,0,3,3],[5,0,6,0],[5,1,6,1],[5,2,6,2],[5,3,6,3],[5,4,6,4],[5,5,6,5],[32,0,32,3],[34,0,34,5],[38,1,38,3],[39,1,39,3]]}
[]
["ANEXO No. 2 - FORMULARIO DE PRECIOS Y CANTIDADES"]
[]
[" (Utilizar papel membrete)"]
[]
["Ítem","Descripción del Producto \n(De conformidad con las especificaciones técnicas)","Cantidad","VALOR UNITARIO ANTES DE IVA","IVA (19%)","VALOR TOTAL"]
[]
[1,"Impresora de Pulseras y brazaletes",1,0,{"$f":"+D8*19%","v":0},{"$f":"ROUND((D8+E8)*$C$10,0)","v":0}]
[2,"Cartucho de Brazaletes, 6 rollos c/u con 200 \nbrazaletes",1,0,{"$f":"+D9*19%","v":0},{"$f":"ROUND((D9+E9)*C9,0)","v":0}]
[3,"Impresora inalámbrica portátil y liviana, Inyección de tinta MicroPiezo® de 4 colores (CMYK)",1,0,0,0]
[4,"Cargadores Multipuerto USB",4,0,0,0]
[5,"Computador portátil, Licencia incluida Windows 11 Pro, garantía 3 años de servicio en sitio",4,0,0,0]
[6,"Disco duro externo, capacidad 2TB",2,0,0,0]
[7,"GPS, Pantalla\tTransflective TFT color, 65 000 colores; tamaño: 3.6 × 5.5 cm (2.6″ diag), resolución: 160 × 240 px, Dimensiones\t6.1 × 16.0 × 3.6 cm",3,0,0,0]
[8,"Pantalla Interactiva-Cartelera digital, 55 pulgadas diagonales, Resolución\tFull HD 1920 x 1080 píxeles",1,0,0,0]
[9,"Plotter Impresora, Inyección de tinta pigmentada 4 colores (BK/C/M/Y), resolución hasta 2400 × 1200 dpi ",1,0,0,0]
[10,"Ferroscam Detector de Materiales hasta 200 mm ",1,0,0,0]
[11,"Impresora a color, Tecnología de impresión\tCabezal Micro Piezo™; tinta tipo Dye; resolución hasta 5760 × 1440 dpi ",3,0,0,0]
[12,"Tóner para impresora a color, colores Negro (BK), Amarillo (Y), Magenta (M), Cian ©, cantidad 24 (6 de cada color)",24,0,0,0]
[13,"Televisor 32\" HD LED Smart TV",2,0,0,0]
[14,"Proyector LED Android 11 HD",1,0,0,0]
[15,"Video beam referencia 1, Resolución nativa Full HD 1920 × 1080p (acepta señales 4K), Brillo\t 4600 lúmenes (blanco y color), Tecnología de proyección\tSistema 3LCD, fuente láser-LED sin lámpara reemplazable",1,0,0,0]
[16,"Video beam referencia 2, Tecnología de imagen 3-Chip 3LCD, brillo igual en color y blanco, Brillo 6200 lúmenes (Color/Blanco ISO), Resolución nativa\tWUXGA (1920 × 1200), acepta señal 4K",1,0,0,0]
[17,"Señalador digital, Tecnología de conexión Bluetooth Smart y RF 2.4 GHz (receptor USB tipo mini) – alcance de hasta 30 m, Sistema operativo\tWindows 7/8/10/11, macOS 10.10+, Chrome OS, Linux, Android 5.0+",2,0,0,0]
[18,"Estación de energía portátil",1,0,0,0]
[19,"Tablet 13\", Procesador M4 con CPU de 10 núcleos (4 rendimiento + 6 eficiencia) y GPU de 10 núcleos, Pantalla\t13″ Ultra Retina XDR Tandem OLED, 2752 × 2064 px, ProMotion (10–120 Hz), 1000 nits SDR, 1600 nits pico HDR",1,0,0,0]
[20,"Teclado para tablet 13\", Compatibilidad Tablet 13″ con chip M4 ",1,0,0,0]
[21,"Lápiz óptico para tablet 13\", Modelos compatibles Con chip M4",1,0,0,0]
[22,"Vidrio templado para Tablet Samsung Galaxy TAB A9 Plus 11\"",13,0,0,0]
[23,"Lápiz óptico para Tablet Samsung Galaxy TAB A9 Plus 11\"",13,0,0,0]
[24,"Estuche protector para Tablet Samsung Galaxy TAB A9 Plus 11\"",13,0,0,0]
[25,"Porta documento con clip / Portapapeles con tapa",13,0,0,0]
["VALOR TOTAL",{"$nulls":4},{"$f":"+SUM(F8:F32)","v":0}]
[]
["Nota: Los equipos de los ítems 7. \"GPS”, 10. \"Ferroscam\" y 18. “Estación de energía portátil” destinados a la atención de emergencias del Cuerpo Oficial de Bomberos de Medellín, se les dará la aplicabilidad a exención de IVA, de conformidad con el artículo 32 de la Ley 1575 del 2012 modificada por el artículo 14 de la Ley 2010 de 2019 que reza “Adquisición de equipos. Los equipos y vehículos especializados destinados para la gestión integral del riesgo contra incendio, los preparativos y atención de rescates en todas sus modalidades y la atención de incidentes con materiales peligrosos estarán exentos del pago del impuesto de IVA, tasas o contribuciones, aranceles y nacionalización en la adquisición por compra o donación de vehículos, equipos o elementos nuevos o usados siempre y cuando el destinatario final sea Bomberos de Colombia”."]
[]
[]
[null,"Nombre del Representante Legal ___________________________________________"]
[null,"C. C. No.________________________________________________________________"]
[null,"  Dirección de correo_______________________________________________________"]
[null,"Dirección electrónica______________________________________________________"]
[null,"Ciudad__________________________________________________________________"]